lending/lending_fUSD_20250122
["ID","MTS","AMOUNT","RATE_DAILY","PERIOD"]
[350023388,1737574235084,-500.0,0.00020199,2]
[350023389,1737574235093,-500.0,0.00020199,2]
[350023390,1737574235102,-607.75107455,0.00020199,2]
[350023391,1737574235111,-500.0,0.00020199,2]
[350023392,1737574235120,-500.0,0.00020199,2]
[350023393,1737574235129,-500.0,0.00020199,2]
[350023394,1737574235138,-500.0,0.00020199,2]
[350023395,1737574235147,-566.29397585,0.00020199,2]
[350023396,1737574235156,-500.0,0.00020199,2]
[350023397,1737574235165,-558.23640813,0.00020199,2]
[350023398,1737574235175,-500.0,0.00020199,2]
[350023399,1737574235184,-500.0,0.00020199,2]
[350023400,1737574235193,-511.88060007,0.00020199,2]
[350023401,1737574235202,-500.0,0.00020199,2]
[350023402,1737574235211,-500.0,0.00020199,2]
[350023403,1737574235220,-500.0,0.00020199,2]
[350023404,1737574235229,-500.0,0.00020199,2]
[350023405,1737574235239,-298.93034337,0.00020199,2]
[350023406,1737574235248,-500.0,0.00020199,2]
[350023407,1737574235257,-500.0,0.00020199,2]
[350023408,1737574235267,-500.0,0.00020199,2]
[350023409,1737574235276,-500.0,0.00020199,2]
[350023410,1737574235285,-500.0,0.00020199,2]
[350023411,1737574235295,-282.27249149,0.00020199,2]
[350023412,1737574235305,-500.0,0.00020199,2]
[350023413,1737574235313,-500.0,0.00020199,2]
[350023414,1737574235322,-500.0,0.00020199,2]
[350023415,1737574235331,-500.0,0.00020199,2]
[350023416,1737574235340,-500.0,0.00020199,2]
[350023417,1737574235350,-500.0,0.00020199,2]
[350023418,1737574235359,-500.0,0.00020199,2]
[350023419,1737574235368,-500.0,0.00020199,2]
[350023420,1737574235377,-308.42775328,0.00020199,2]
[350023421,1737574235386,-500.0,0.00020199,2]
[350023422,1737574235395,-500.0,0.00020199,2]
[350023423,1737574235404,-500.0,0.00020199,2]
[350023424,1737574235413,-500.0,0.00020199,2]
[350023425,1737574235423,-500.0,0.00020199,2]
[350023426,1737574235432,-500.0,0.00020199,2]
[350023427,1737574235442,-500.0,0.00020199,2]
[350023428,1737574235451,-500.0,0.00020199,2]
[350023429,1737574235460,-500.0,0.00020199,2]
[350023430,1737574235469,-500.0,0.00020199,2]
[350023431,1737574235478,-502.84443433,0.00020199,2]
[350023432,1737574235487,-500.0,0.00020199,2]
[350023433,1737574235496,-500.0,0.00020199,2]
[350023434,1737574235506,-500.0,0.00020199,2]
[350023435,1737574235515,-500.0,0.00020199,2]
[350023436,1737574235524,-500.0,0.00020199,2]
[350023437,1737574235533,-511.08601957,0.00020199,2]
[350023438,1737574235542,-500.0,0.00020199,2]
[350023439,1737574235551,-198.37920651,0.00020199,2]
[350023440,1737574235560,-600.89065823,0.00020199,2]
[350023441,1737574235569,-500.0,0.00020199,2]
[350023442,1737574235578,-251.54810222,0.00020199,2]
[350023443,1737574235587,-500.0,0.00020199,2]
[350023444,1737574235597,-500.0,0.00020199,2]
[350023445,1737574235606,-500.0,0.00020199,2]
[350023446,1737574235615,-500.0,0.00020199,2]
[350023447,1737574235625,-500.0,0.00020199,2]
[350023448,1737574235634,-233.11091464,0.00020199,2]
[350023449,1737574235643,-500.0,0.00020199,2]
[350023450,1737574235652,-385.8,0.00020199,2]
[350023451,1737574235662,-500.0,0.00020199,2]
[350023452,1737574235672,-645.67115546,0.00020199,2]
[350023453,1737574235681,-500.0,0.00020199,2]
[350023454,1737574235691,-629.18,0.00020199,2]
[350023455,1737574235700,-500.0,0.00020199,2]
[350023456,1737574235710,-500.0,0.00020199,2]
[350023457,1737574235719,-500.0,0.00020199,2]
[350023458,1737574235728,-500.0,0.00020199,2]
[350023459,1737574235737,-500.0,0.00020199,2]
[350023460,1737574235747,-500.0,0.00020199,2]
[350023461,1737574235756,-500.0,0.00020199,2]
[350023462,1737574235765,-500.0,0.00020199,2]
[350023463,1737574235775,-500.0,0.00020199,2]
[350023464,1737574235784,-500.0,0.00020199,2]
[350023465,1737574235793,-500.0,0.00020199,2]
[350023466,1737574235802,-500.0,0.00020199,2]
[350023467,1737574235812,-500.0,0.00020199,2]
[350023468,1737574235821,-512.21364045,0.00020199,2]
[350023469,1737574235832,-525.527159,0.00020199,2]
[350023470,1737574235841,-500.0,0.00020199,2]
[350023471,1737574235851,-500.0,0.00020199,2]
[350023472,1737574235861,-500.0,0.00020199,2]
[350023473,1737574235870,-500.0,0.00020199,2]
[350023474,1737574235879,-18152.0076126,0.000202,2]
[350023475,1737574235889,-20000.0,0.000202,2]
[350023476,1737574235899,-500.0,0.00020272,2]
[350023477,1737574235908,-500.0,0.00020272,2]
[350023478,1737574235918,-500.0,0.00020272,2]
[350023479,1737574235927,-500.0,0.00020272,2]
[350023480,1737574235937,-500.0,0.00020272,2]
[350023481,1737574235946,-500.0,0.00020272,2]
[350023482,1737574235955,-500.0,0.00020272,2]
[350023483,1737574235964,-4236.25736077,0.00020343,2]
[350023484,1737574235973,-500.0,0.00020453,2]
[350023485,1737574235983,-500.0,0.00020453,2]
[350023486,1737574235992,-500.0,0.00020453,2]
[350023487,1737574236001,-650.18,0.00020453,2]
[350023488,1737574236010,-500.0,0.00020453,2]
[350023489,1737574236020,-500.0,0.00020453,2]
[350023490,1737574236029,-651.66,0.00020453,2]
[350023491,1737574236038,-500.0,0.00020453,2]
[350023492,1737574236048,-500.0,0.00020453,2]
[350023493,1737574236057,-1115.68,0.00020453,2]
[350023494,1737574236066,-500.0,0.00020453,2]
[350023495,1737574236075,-500.0,0.00020453,2]
[350023496,1737574236085,-1496.95,0.00020453,2]
[350023497,1737574236094,-500.0,0.00020453,2]
[350023498,1737574236104,-500.0,0.00020453,2]
[350023499,1737574236113,-430.10910948,0.00020453,2]
[350023500,1737574236122,-500.0,0.00020454,2]
[350023501,1737574236131,-645.91013455,0.00020454,2]
[350023502,1737574236140,-673.217808,0.00020454,2]
[350023503,1737574236150,-500.0,0.00020454,2]
[350023504,1737574236159,-606.23,0.00020454,2]
[350023505,1737574236168,-685.12,0.00020454,2]
[350023506,1737574236176,-500.0,0.00020454,2]
[350023507,1737574236186,-500.0,0.00020454,2]
[350023508,1737574236197,-791.05,0.00020454,2]
[350023509,1737574236218,-500.0,0.00020454,2]
[350023510,1737574236229,-579.344951,0.00020454,2]
[350023511,1737574236238,-627.2,0.00020454,2]
[350023512,1737574236247,-500.0,0.00020454,2]
[350023513,1737574236256,-811.94,0.00020454,2]
[350023514,1737574236266,-1439.69,0.00020454,2]
[350023515,1737574236281,-772.74,0.00020454,2]
[350023516,1737574236291,-613.25,0.00020454,2]
[350023517,1737574236300,-1088.93,0.00020454,2]
[350023518,1737574236309,-943.23,0.00020454,2]
[350023519,1737574236319,-500.0,0.00020454,2]
[350023520,1737574236328,-1218.15,0.00020454,2]
[350023521,1737574236337,-734.65,0.00020454,2]
[350023522,1737574236347,-500.0,0.00020454,2]
[350023523,1737574236355,-500.0,0.00020454,2]
[350023524,1737574236365,-500.0,0.00020454,2]
[350023525,1737574236374,-904.63,0.00020454,2]
[350023526,1737574236382,-623.71,0.00020454,2]
[350023527,1737574236391,-1292.51,0.00020454,2]
[350023528,1737574236400,-500.0,0.00020454,2]
[350023529,1737574236409,-500.0,0.00020454,2]
[350023530,1737574236418,-500.0,0.00020454,2]
[350023531,1737574236428,-701.11,0.00020454,2]
[350023532,1737574236437,-736.82,0.00020454,2]
[350023533,1737574236446,-500.0,0.00020454,2]
[350023534,1737574236455,-598.58,0.00020454,2]
[350023535,1737574236463,-530.37,0.00020454,2]
[350023536,1737574236472,-1092.36,0.00020454,2]
[350023537,1737574236482,-760.34,0.00020454,2]
[350023538,1737574236491,-500.0,0.0002047,2]
[350023539,1737574236500,-500.0,0.00020471,2]
[350023540,1737574236509,-500.0,0.00020471,2]
[350023541,1737574236518,-500.0,0.00020471,2]
[350023542,1737574236527,-500.0,0.00020471,2]
[350023543,1737574236535,-500.0,0.00020471,2]
[350023544,1737574236544,-500.0,0.00020471,2]
[350023545,1737574236553,-500.0,0.00020471,2]
[350023546,1737574236562,-500.0,0.00020471,2]
[350023547,1737574236571,-500.0,0.00020471,2]
[350023548,1737574236581,-500.0,0.00020471,2]
[350023549,1737574236590,-500.0,0.00020471,2]
[350023550,1737574236599,-500.0,0.00020471,2]
[350023551,1737574236608,-500.0,0.00020471,2]
[350023552,1737574236617,-500.0,0.00020471,2]
[350023553,1737574236626,-500.0,0.00020471,2]
[350023554,1737574236635,-500.0,0.00020471,2]
[350023555,1737574236645,-176.71,0.00020471,2]
[350023556,1737574236655,-500.0,0.00020471,2]
[350023557,1737574236666,-188.49736855,0.00020471,2]
[350023558,1737574236676,-500.0,0.00020471,2]
[350023559,1737574236685,-500.0,0.00020471,2]
[350023560,1737574236695,-500.0,0.00020471,2]
[350023561,1737574236703,-601.46,0.00020471,2]
[350023562,1737574236712,-500.0,0.00020471,2]
[350023563,1737574236722,-500.0,0.00020471,2]
[350023564,1737574236732,-500.0,0.00020471,2]
[350023565,1737574236741,-500.0,0.00020471,2]
[350023566,1737574236752,-279.73231948,0.00020471,2]
[350023567,1737574236763,-694.35,0.00020471,2]
[350023568,1737574236773,-500.0,0.00020471,2]
[350023569,1737574236782,-246.86,0.00020471,2]
[350023570,1737574236791,-548.6,0.00020471,2]
[350023571,1737574236800,-500.0,0.00020471,2]
[350023572,1737574236809,-588.19,0.00020471,2]
[350023573,1737574236819,-500.0,0.00020471,2]
[350023574,1737574236828,-497.56682455,0.00020471,2]
[350023575,1737574236837,-1075.52,0.00020471,2]
[350023576,1737574236846,-500.0,0.00020471,2]
[350023577,1737574236855,-551.51,0.00020471,2]
[350023578,1737574236865,-500.0,0.00020471,2]
[350023579,1737574236874,-500.0,0.00020471,2]
[350023580,1737574236883,-500.0,0.00020471,2]
[350023581,1737574236892,-159.94418109,0.00020471,2]
[350023582,1737574236901,-1205.34,0.00020471,2]
[350023583,1737574236911,-500.0,0.00020471,2]
[350023584,1737574236920,-500.0,0.00020471,2]
[350023585,1737574236929,-1162.78,0.00020471,2]
[350023586,1737574236938,-500.0,0.00020471,2]
[350023587,1737574236947,-208.20231111,0.00020471,2]
[350023588,1737574236956,-500.0,0.00020471,2]
[350023589,1737574236965,-500.0,0.00020471,2]
[350023590,1737574236974,-518.75,0.00020471,2]
[350023591,1737574236983,-500.0,0.00020471,2]
[350023592,1737574236992,-500.0,0.00020471,2]
[350023593,1737574237001,-500.0,0.00020471,2]
[350023594,1737574237010,-500.0,0.00020471,2]
[350023595,1737574237020,-500.0,0.00020471,2]
[350023596,1737574237030,-500.57,0.00020471,2]
[350023597,1737574237040,-500.0,0.00020471,2]
[350023598,1737574237050,-522.49,0.00020471,2]
[350023599,1737574237060,-1112.07,0.00020471,2]
[350023600,1737574237068,-500.0,0.00020471,2]
[350023601,1737574237079,-2130.4,0.00020471,2]
[350023602,1737574237088,-500.0,0.00020471,2]
[350023603,1737574237098,-500.0,0.00020471,2]
[350023604,1737574237109,-500.0,0.00020471,2]
[350023605,1737574237120,-761.5,0.00020471,2]
[350023606,1737574237129,-652.49,0.00020471,2]
[350023607,1737574237138,-500.0,0.00020471,2]
[350023608,1737574237147,-843.63,0.00020471,2]
[350023609,1737574237156,-500.0,0.00020472,2]
[350023610,1737574237165,-586.23,0.00020472,2]
[350023611,1737574237174,-517.07,0.00020472,2]
[350023612,1737574237184,-507.19,0.00020472,2]
[350023613,1737574237193,-500.0,0.00020472,2]
[350023614,1737574237202,-846.13,0.00020472,2]
[350023615,1737574237211,-1041.43,0.00020472,2]
[350023616,1737574237220,-204.98080356,0.00020473,2]
[350023617,1737574237228,-500.0,0.00020473,2]
[350023618,1737574237237,-500.0,0.00020473,2]
[350023619,1737574237246,-204.51919403,0.00020473,2]
[350023620,1737574237255,-3699.0,0.000205,3]
[350023621,1737574237265,-274.7109116,0.00020517,2]
[350023622,1737574237274,-500.0,0.00020546,2]
[350023623,1737574237283,-500.0,0.00020546,2]
[350023624,1737574237292,-500.0,0.00020546,2]
[350023625,1737574237301,-500.0,0.00020546,2]
[350023626,1737574237310,-500.0,0.00020546,2]
[350023627,1737574237319,-500.0,0.00020546,2]
[350023628,1737574237328,-500.0,0.00020546,2]
[350023629,1737574237337,-151.0,0.00020546,2]
[350023630,1737574237346,-151.0,0.00020546,2]
[350023631,1737574237355,-4236.25736077,0.00020565,2]
[350023632,1737574237364,-3000.0,0.0002061,2]
[350023633,1737574237373,-2129.80601605,0.00020628,2]
[350023634,1737574237382,-187.51,0.00020658,2]
[350023635,1737574237391,-151.0,0.00020698,2]
[350023636,1737574237401,-500.0,0.00020727,2]
[350023637,1737574237411,-500.0,0.00020727,2]
[350023638,1737574237420,-500.0,0.00020727,2]
[350023639,1737574237430,-650.18,0.00020727,2]
[350023640,1737574237439,-500.0,0.00020727,2]
[350023641,1737574237448,-500.0,0.00020727,2]
[350023642,1737574237457,-651.66,0.00020727,2]
[350023643,1737574237467,-500.0,0.00020727,2]
[350023644,1737574237476,-500.0,0.00020727,2]
[350023645,1737574237485,-1115.68,0.00020727,2]
[350023646,1737574237495,-443.21529053,0.00020727,2]
[350023647,1737574237504,-1496.95,0.00020727,2]
[350023648,1737574237514,-500.0,0.00020727,2]
[350023649,1737574237523,-500.0,0.00020727,2]
[350023650,1737574237532,-52574.44221049,0.00020728,2]
[350023651,1737574237950,-2198.46322718,0.00020728,2]
[350023652,1737574237992,-1005.50163059,0.00020728,2]
[350023739,1737574239825,-500.0,0.00020179,2]
[350023740,1737574239836,-537.38,0.00020197,2]
[350023741,1737574239845,-500.0,0.00020453,2]
[350023742,1737574239855,-537.38,0.00020471,2]
[350023743,1737574239864,-500.0,0.00020727,2]
[350023744,1737574239873,-727.72047644,0.00020728,2]
[350023745,1737574239885,-16866.38392336,0.00020728,2]
[350023746,1737574239896,-43730.39528796,0.00020728,2]
[350023747,1737574239911,-1013.1753058,0.00020728,2]
[350023748,1737574239922,-1052.05280993,0.00020728,2]
[350023749,1737574239933,-2070.2,0.00020728,2]
[350023750,1737574240184,-857.383839,0.00020728,2]
[350023831,1737574242824,-500.0,0.00020179,2]
[350023832,1737574242833,-555.71,0.00020179,2]
[350023833,1737574242843,-636.49,0.0002018,2]
[350023834,1737574242852,-500.0,0.0002018,2]
[350023835,1737574242861,-555.71,0.00020453,2]
[350023836,1737574242870,-636.49,0.00020454,2]
[350023837,1737574242879,-500.0,0.00020454,2]
[350023838,1737574242888,-555.71,0.00020727,2]
[350023839,1737574242898,-81800.37651521,0.00020728,2]
[350023840,1737574242908,-673.217808,0.00020728,2]
[350023841,1737574242918,-685.12,0.00020728,2]
[350023842,1737574242927,-500.0,0.00020728,2]
[350023843,1737574242936,-500.0,0.00020728,2]
[350023844,1737574242945,-791.05,0.00020728,2]
[350023845,1737574242955,-500.0,0.00020728,2]
[350023846,1737574242964,-627.2,0.00020728,2]
[350023847,1737574242973,-500.0,0.00020728,2]
[350023848,1737574242982,-811.94,0.00020728,2]
[350023849,1737574242991,-1439.69,0.00020728,2]
[350023850,1737574243000,-772.74,0.00020728,2]
[350023851,1737574243010,-613.25,0.00020728,2]
[350023852,1737574243019,-272.040353,0.00020728,2]
[350023853,1737574243028,-1088.93,0.00020728,2]
[350023854,1737574243037,-943.23,0.00020728,2]
[350023856,1737574243046,-500.0,0.00020728,2]
[350023858,1737574243055,-1218.15,0.00020728,2]
[350023859,1737574243065,-151.0,0.00020728,2]
[350023860,1737574243074,-734.65,0.00020728,2]
[350023861,1737574243083,-500.0,0.00020728,2]
[350023862,1737574243092,-500.0,0.00020728,2]
[350023864,1737574243101,-500.0,0.00020728,2]
[350023866,1737574243110,-904.63,0.00020728,2]
[350023868,1737574243119,-623.71,0.00020728,2]
[350023870,1737574243127,-1292.51,0.00020728,2]
[350023872,1737574243136,-500.0,0.00020728,2]
[350023874,1737574243145,-151.0,0.00020728,2]
[350023876,1737574243154,-500.0,0.00020728,2]
[350023877,1737574243163,-459.032501,0.00020728,2]
[350023879,1737574243173,-151.0,0.00020728,2]
[350023880,1737574243182,-500.0,0.00020728,2]
[350023882,1737574243191,-459.032501,0.00020728,2]
[350023883,1737574243200,-701.11,0.00020728,2]
[350023885,1737574243209,-736.82,0.00020728,2]
[350023887,1737574243218,-500.0,0.00020728,2]
[350023888,1737574243227,-598.58,0.00020728,2]
[350023890,1737574243236,-530.37,0.00020728,2]
[350023891,1737574243245,-1092.36,0.00020728,2]
[350023892,1737574243255,-760.34,0.00020728,2]
[350023893,1737574243264,-151.0,0.00020728,2]
[350023894,1737574243273,-636.49,0.00020728,2]
[350023895,1737574243282,-500.0,0.00020728,2]
[350023896,1737574243291,-500.0,0.0002074,2]
[350023897,1737574243300,-500.0,0.00020745,2]
[350023898,1737574243308,-594.04729779,0.00020745,2]
[350023899,1737574243317,-500.0,0.00020745,2]
[350023900,1737574243326,-500.0,0.00020745,2]
[350023901,1737574243335,-500.0,0.00020745,2]
[350023902,1737574243344,-500.0,0.00020745,2]
[350023903,1737574243353,-500.0,0.00020745,2]
[350023904,1737574243362,-500.0,0.00020745,2]
[350023905,1737574243371,-500.0,0.00020745,2]
[350023906,1737574243380,-500.0,0.00020745,2]
[350023907,1737574243389,-500.0,0.00020745,2]
[350023908,1737574243398,-574.87,0.00020745,2]
[350023909,1737574243407,-500.0,0.00020745,2]
[350023910,1737574243417,-500.0,0.00020745,2]
[350023911,1737574243427,-500.0,0.00020745,2]
[350023912,1737574243436,-500.0,0.00020745,2]
[350023913,1737574243445,-500.0,0.00020745,2]
[350023914,1737574243454,-500.0,0.00020745,2]
[350023915,1737574243464,-151.0,0.00020745,2]
[350023916,1737574243474,-500.0,0.00020745,2]
[350023917,1737574243483,-500.0,0.00020745,2]
[350023918,1737574243492,-151.0,0.00020745,2]
[350023919,1737574243501,-500.0,0.00020745,2]
[350023920,1737574243510,-500.0,0.00020745,2]
[350023921,1737574243519,-588.19,0.00020745,2]
[350023922,1737574243529,-500.0,0.00020745,2]
[350023923,1737574243538,-1075.52,0.00020745,2]
[350023924,1737574243548,-500.0,0.00020745,2]
[350023925,1737574243557,-551.51,0.00020745,2]
[350023926,1737574243566,-500.0,0.00020745,2]
[350023927,1737574243575,-500.0,0.00020745,2]
[350023928,1737574243585,-500.0,0.00020745,2]
[350023929,1737574243595,-1205.34,0.00020745,2]
[350023930,1737574243607,-500.0,0.00020745,2]
[350023931,1737574243616,-1162.78,0.00020745,2]
[350023932,1737574243625,-500.0,0.00020745,2]
[350023933,1737574243634,-500.0,0.00020745,2]
[350023934,1737574243643,-500.0,0.00020745,2]
[350023935,1737574243653,-518.75,0.00020745,2]
[350023936,1737574243661,-500.0,0.00020745,2]
[350023937,1737574243672,-609.67845419,0.00020745,2]
[350023938,1737574243682,-500.0,0.00020745,2]
[350023939,1737574243692,-500.0,0.00020745,2]
[350023940,1737574243701,-500.0,0.00020745,2]
[350023941,1737574243711,-500.57,0.00020745,2]
[350023942,1737574243719,-500.0,0.00020745,2]
[350023943,1737574243729,-522.49,0.00020745,2]
[350023944,1737574243738,-1112.07,0.00020745,2]
[350023945,1737574243747,-500.0,0.00020745,2]
[350023946,1737574243757,-2130.4,0.00020745,2]
[350023947,1737574243767,-500.0,0.00020745,2]
[350023948,1737574243776,-500.0,0.00020745,2]
[350023949,1737574243785,-500.0,0.00020745,2]
[350023950,1737574243795,-761.5,0.00020745,2]
[350023951,1737574243805,-652.49,0.00020745,2]
[350023952,1737574243816,-500.0,0.00020745,2]
[350023953,1737574243825,-843.63,0.00020745,2]
[350023954,1737574243833,-537.38,0.00020745,2]
[350023955,1737574243842,-151.0,0.00020746,2]
[350023956,1737574243851,-517.07,0.00020746,2]
[350023957,1737574243861,-507.19,0.00020746,2]
[350023958,1737574243870,-500.0,0.00020746,2]
[350023959,1737574243879,-846.13,0.00020746,2]
[350023960,1737574243888,-1041.43,0.00020746,2]
[350023961,1737574243897,-4236.25736077,0.00020788,2]
[350023962,1737574243907,-152.0,0.00020815,3]
[350023963,1737574243916,-5855.766473,0.00020818,2]
[350023964,1737574243925,-5206.08,0.0002082,3]
[350023965,1737574243934,-151.0,0.0002082,2]
[350023966,1737574243943,-500.0,0.0002082,2]
[350023967,1737574243953,-500.0,0.0002082,2]
[350023968,1737574243963,-500.0,0.0002082,2]
[350023969,1737574243971,-500.0,0.0002082,2]
[350023970,1737574243980,-500.0,0.0002082,2]
[350023971,1737574243989,-500.0,0.0002082,2]
[350023972,1737574243998,-500.0,0.0002082,2]
[350023973,1737574244009,-151.0,0.0002082,2]
[350023974,1737574244029,-261.567389,0.0002082,2]
[350023975,1737574244039,-151.0,0.0002082,2]
[350023976,1737574244047,-151.0,0.0002082,2]
[350023977,1737574244057,-5254.50463918,0.00020835,2]
[350023978,1737574244066,-5254.50463918,0.0002087,2]
[350023979,1737574244077,-5254.50463918,0.00020883,2]
[350023980,1737574244086,-200.0,0.00020885,2]
[350023981,1737574244096,-5855.766473,0.00020887,2]
[350023982,1737574244105,-5855.766473,0.0002089,2]
[350023983,1737574244114,-200.0,0.00020892,2]
[350023984,1737574244123,-5254.50463918,0.00020895,2]
[350023985,1737574244132,-44016.9593,0.000209,2]
[350023986,1737574244141,-156.49992951,0.000209,2]
[350023987,1737574244150,-5900.11285221,0.000209,2]
[350023988,1737574244159,-27560.99007094,0.000209,4]
[350023989,1737574244172,-12674.517128,0.000209,4]
[350023990,1737574244198,-1982.38452998,0.000209,4]
[350023991,1737574244211,-1780.67464735,0.000209,4]
[350023992,1737574244226,-10474.04521,0.000209,4]
[350023993,1737574244237,-5158.81999999,0.000209,4]
[350024000,1737574245833,-500.0,0.00020179,2]
[350024001,1737574245843,-496.581386,0.00020179,2]
[350024002,1737574245853,-500.0,0.00020197,2]
[350024003,1737574245863,-137.534038,0.00020453,2]
[350024004,1737574245875,-359.047348,0.00020453,2]
[350024005,1737574245884,-496.581386,0.00020727,2]
[350024006,1737574245893,-151.0,0.00020728,2]
[350024007,1737574245903,-1637.765266,0.000209,4]
[350024008,1737574246535,-11351.80821103,0.000209,4]
[350024009,1737574246544,-459.032501,0.000209,2]
[350024010,1737574246554,-151.0,0.000209,2]
[350024011,1737574246563,-459.032501,0.000209,2]
[350024012,1737574246573,-1995.00248068,0.000209,2]
[350024013,1737574246582,-5855.766473,0.00020906,2]
[350024014,1737574246592,-161.27208987,0.0002092,2]
[350024015,1737574246601,-5254.50463918,0.00020921,2]
[350024016,1737574246610,-1995.00248045,0.00020934,2]
[350024017,1737574246619,-3328.22690933,0.00020936,2]
[350024018,1737574246628,-38481.40500706,0.00020939,2]
[350024019,1737574246637,-5855.766473,0.00020942,2]
[350024020,1737574246646,-880.16185793,0.00020942,2]
[350024021,1737574246655,-1356.83656007,0.00020942,2]
[350024022,1737574246664,-339.78331839,0.00020943,2]
[350024023,1737574246673,-2538.33696221,0.00020945,2]
[350024024,1737574246682,-616.54035252,0.00020947,2]
[350024025,1737574246691,-616.54035252,0.00020948,2]
[350024027,1737574246700,-1821.04192883,0.00020948,2]
[350024029,1737574246710,-150.99,0.00020951,2]
[350024030,1737574246719,-1995.00248045,0.00020969,2]
[350024031,1737574246728,-4120.78488664,0.00021,2]
[350024032,1737574246737,-48308.32161702,0.00021,2]
[350024033,1737574246745,-8367.87917945,0.00021,2]
[350024035,1737574246756,-818.0,0.00021,3]
[350024036,1737574246765,-1000.0,0.00021,7]
[350024037,1737574246774,-3958.4321211,0.00021,2]
[350024038,1737574246783,-1000.0,0.00021,2]
[350024039,1737574246793,-298.02213,0.00021,2]
[350024040,1737574246802,-151.0,0.00021,2]
[350024041,1737574246811,-500.0,0.00021001,2]
[350024042,1737574246820,-500.0,0.00021001,2]
[350024043,1737574246829,-500.0,0.00021001,2]
[350024044,1737574246838,-650.18,0.00021001,2]
[350024045,1737574246847,-500.0,0.00021001,2]
[350024046,1737574246857,-500.0,0.00021001,2]
[350024047,1737574246866,-651.66,0.00021001,2]
[350024048,1737574246876,-500.0,0.00021001,2]
[350024049,1737574246885,-500.0,0.00021001,2]
[350024050,1737574246895,-1115.68,0.00021001,2]
[350024051,1737574246904,-1496.95,0.00021001,2]
[350024052,1737574246913,-500.0,0.00021001,2]
[350024053,1737574246923,-500.0,0.00021001,2]
[350024054,1737574246932,-500.0,0.00021001,2]
[350024055,1737574246942,-555.71,0.00021001,2]
[350024056,1737574246951,-496.581386,0.00021001,2]
[350024057,1737574246960,-673.217808,0.00021002,2]
[350024058,1737574246969,-685.12,0.00021002,2]
[350024059,1737574246979,-500.0,0.00021002,2]
[350024060,1737574246988,-500.0,0.00021002,2]
[350024061,1737574246996,-791.05,0.00021002,2]
[350024062,1737574247006,-500.0,0.00021002,2]
[350024063,1737574247017,-627.2,0.00021002,2]
[350024064,1737574247027,-396.03389877,0.00021002,2]
[350024065,1737574247037,-811.94,0.00021002,2]
[350024066,1737574247047,-1439.69,0.00021002,2]
[350024067,1737574247056,-772.74,0.00021002,2]
[350024068,1737574247065,-613.25,0.00021002,2]
[350024069,1737574247074,-1088.93,0.00021002,2]
[350024070,1737574247083,-943.23,0.00021002,2]
[350024071,1737574247093,-500.0,0.00021002,2]
[350024072,1737574247102,-1218.15,0.00021002,2]
[350024073,1737574247111,-734.65,0.00021002,2]
[350024074,1737574247120,-500.0,0.00021002,2]
[350024075,1737574247129,-500.0,0.00021002,2]
[350024076,1737574247138,-500.0,0.00021002,2]